bitfinex-derivatives/quotes_BTCF0:USTF0_20250325
["timestamp","ask_amount","ask_price","bid_price","bid_amount"]
[1742887130538,0.0561,86677.0,86676.0,0.1153698]
[1742887130837,0.05618,86677.0,86676.0,0.1717861]
[1742887131141,0.05618,86677.0,86676.0,0.17210445]
[1742887132532,0.0004,86680.0,86677.0,0.1730522]
[1742887132731,0.0532,86680.0,86679.0,0.1153658]
[1742887132937,0.0532,86680.0,86679.0,0.1573071]
[1742887133131,0.0532,86680.0,86679.0,0.28430045]
[1742887134536,0.05472,86680.0,86679.0,0.2695071]
[1742887134939,0.05472,86680.0,86679.0,0.27110696]
[1742887135646,0.05472,86680.0,86679.0,0.27088307]
[1742887136248,0.10862,86680.0,86679.0,0.27088307]
[1742887136649,0.10862,86680.0,86679.0,0.24631851]
[1742887138141,0.10862,86680.0,86679.0,0.23096566]
[1742887138450,0.1071,86680.0,86679.0,0.23096566]
[1742887138647,0.1071,86680.0,86679.0,0.2293658]
[1742887139543,0.10862,86680.0,86679.0,0.2293658]
[1742887139739,0.10862,86680.0,86679.0,0.23096566]
[1742887139946,0.10862,86680.0,86679.0,0.24621379]
[1742887140242,0.10862,86680.0,86679.0,0.23096566]
[1742887140843,0.10862,86680.0,86679.0,0.24621362]
[1742887142043,0.10862,86680.0,86679.0,0.2707248]
[1742887143352,0.1071,86680.0,86679.0,0.2707248]
[1742887143648,0.1071,86680.0,86679.0,0.27082897]
[1742887143851,0.1071,86680.0,86679.0,0.26922911]
[1742887144255,0.10862,86680.0,86679.0,0.26922911]
[1742887144458,0.10862,86680.0,86679.0,0.27082897]
[1742887145854,0.10862,86680.0,86679.0,0.27082088]
[1742887147058,0.10862,86680.0,86679.0,0.24629459]
[1742887148462,0.1071,86680.0,86679.0,0.24629459]
[1742887148663,0.1071,86680.0,86679.0,0.24469473]
[1742887149060,0.10862,86680.0,86679.0,0.24469473]
[1742887149361,0.10862,86680.0,86679.0,0.24629459]
[1742887151453,0.10862,86680.0,86679.0,0.60709459]
[1742887151962,0.05472,86680.0,86679.0,0.60709459]
[1742887153465,0.0532,86680.0,86679.0,0.60709459]
[1742887153760,0.0532,86680.0,86679.0,0.60549473]
[1742887153965,0.05472,86680.0,86679.0,0.60538112]
[1742887154165,0.05472,86680.0,86679.0,0.60698098]
[1742887154853,0.05472,86680.0,86679.0,0.72114098]
[1742887158359,0.0532,86680.0,86679.0,0.60698098]
[1742887158564,0.0532,86680.0,86679.0,0.37941518]
[1742887158864,0.2209645,86680.0,86679.0,0.13398098]
[1742887159057,0.2209645,86680.0,86679.0,0.11876566]
[1742887159058,0.1056,86680.0,86679.0,0.11876566]
[1742887159259,0.1056,86680.0,86679.0,0.1171658]
[1742887159458,0.1593,86680.0,86679.0,0.1171658]
[1742887159770,0.16082,86680.0,86679.0,0.11876566]
[1742887160065,0.2761845,86680.0,86679.0,0.1342214]
[1742887160268,0.2761845,86680.0,86679.0,0.14903489]
[1742887161163,0.6861845,86680.0,86679.0,0.14903489]
[1742887162466,0.6861845,86680.0,86679.0,0.20443489]
[1742887162666,0.6861845,86680.0,86679.0,0.14903489]
[1742887163260,0.6861845,86680.0,86679.0,0.20443489]
[1742887163569,0.6846645,86680.0,86679.0,0.14903489]
[1742887163869,0.6846645,86680.0,86679.0,0.14743503]
[1742887164168,0.6861845,86680.0,86679.0,0.14743503]
[1742887164366,0.6861845,86680.0,86679.0,0.1474769]
[1742887164770,0.6861845,86680.0,86679.0,0.14907676]
[1742887164973,0.6861845,86680.0,86679.0,0.20447676]
[1742887168476,0.6846645,86680.0,86679.0,0.20447676]
[1742887169177,0.6846645,86680.0,86679.0,0.14907676]
[1742887169365,0.6846645,86680.0,86679.0,0.1474769]
[1742887169566,0.6861845,86680.0,86679.0,0.1474769]
[1742887169771,0.6861845,86680.0,86679.0,0.14907676]
[1742887170779,0.6861845,86680.0,86679.0,0.14898611]
[1742887171187,0.6861845,86680.0,86679.0,0.20088611]
[1742887171389,0.6861845,86680.0,86679.0,0.25168611]
[1742887173394,0.6846645,86680.0,86679.0,0.25168611]
[1742887173794,0.6846645,86680.0,86679.0,0.25008625]
[1742887174093,0.6861845,86680.0,86679.0,0.25008625]
[1742887174293,0.6861845,86680.0,86679.0,0.25168611]
[1742887174993,0.6861845,86680.0,86679.0,0.25170961]
[1742887178088,0.6861845,86680.0,86679.0,0.23689293]
[1742887178390,0.6846645,86680.0,86679.0,0.22146566]
[1742887178791,0.6846645,86680.0,86679.0,0.0018]
[1742887178986,0.1153831,86666.0,86665.0,0.20738968]
[1742887179191,0.47678311,86666.0,86665.0,0.32405418]
[1742887179399,0.47678311,86666.0,86665.0,0.32533418]
[1742887179600,0.47678311,86666.0,86665.0,0.32405418]
[1742887180203,0.47678311,86666.0,86665.0,0.32705418]
[1742887180500,0.47678311,86666.0,86665.0,0.1703645]
[1742887180902,0.47678311,86666.0,86665.0,0.18112469]
[1742887181702,0.47678311,86666.0,86665.0,0.17812469]
[1742887182000,0.47678311,86666.0,86665.0,0.18012469]
[1742887182600,0.47678311,86666.0,86665.0,0.18212469]
[1742887184194,0.47678311,86666.0,86665.0,0.18372455]
[1742887184696,0.88678311,86666.0,86665.0,0.18372455]
[1742887184902,0.88678311,86666.0,86665.0,0.18244455]
[1742887185199,0.88678311,86666.0,86665.0,0.05629986]
[1742887186091,0.88678311,86666.0,86665.0,0.10879986]
[1742887186607,0.88678311,86666.0,86665.0,0.11983516]
[1742887188703,0.88678311,86666.0,86665.0,0.1182353]
[1742887188898,0.88678311,86666.0,86665.0,0.2336198]
[1742887189098,0.88678311,86666.0,86665.0,0.1195153]
[1742887189307,0.88678311,86666.0,86665.0,0.11983516]
[1742887189602,0.88678311,86666.0,86665.0,0.12111516]
[1742887190205,0.88678311,86666.0,86665.0,0.11983516]
[1742887190706,0.88678311,86666.0,86665.0,0.23649966]
[1742887191097,0.88678311,86666.0,86665.0,0.12111516]
[1742887192305,0.88678311,86666.0,86665.0,0.11983516]
[1742887192504,0.88678311,86666.0,86665.0,0.12111516]
[1742887193006,1.02407126,86666.0,86665.0,0.12111516]
[1742887193210,1.02407126,86666.0,86665.0,0.23649966]
[1742887193403,1.02407126,86666.0,86665.0,0.23653966]
[1742887193603,0.90868816,86666.0,86665.0,0.23653966]
[1742887194910,1.02407126,86666.0,86665.0,0.23653966]
[1742887196209,0.88678311,86666.0,86665.0,0.23653966]
[1742887199808,0.52598311,86666.0,86665.0,0.23653966]
[1742887200209,0.41060001,86666.0,86665.0,0.23653966]
[1742887202717,0.41060001,86666.0,86665.0,0.59733966]
[1742887203309,0.41060001,86666.0,86665.0,0.61210458]
[1742887203507,0.41060001,86666.0,86665.0,0.59733966]
[1742887203705,0.41060001,86666.0,86665.0,0.61210438]
[1742887203910,0.41060001,86666.0,86665.0,0.61233073]
[1742887205711,0.41060001,86666.0,86665.0,0.25153073]
[1742887206919,0.41060001,86666.0,86665.0,0.23653966]
[1742887207112,0.41060001,86666.0,86665.0,0.25135126]
[1742887207817,0.41060001,86666.0,86665.0,0.36547126]
[1742887209712,0.41060001,86666.0,86665.0,0.36561628]
[1742887213608,0.41060001,86666.0,86665.0,0.13611178]
[1742887213809,0.52598311,86666.0,86665.0,0.00559986]
[1742887214015,0.1153898,86661.0,86651.0,0.91404]
[1742887214220,0.4775498,86661.0,86660.0,0.00153316]
[1742887214419,0.4775498,86661.0,86660.0,0.00017316]
[1742887214820,0.4775498,86661.0,86660.0,0.00145316]
[1742887215019,0.1153911,86660.0,86659.0,8e-05]
[1742887215223,0.22299111,86660.0,86659.0,8e-05]
[1742887215420,0.63299111,86660.0,86659.0,8e-05]
[1742887215717,0.1153965,86656.0,86649.0,0.27679431]
[1742887216020,0.1163165,86656.0,86649.0,0.27679431]
[1742887216221,0.1163165,86656.0,86655.0,0.20826968]
[1742887216426,0.1154045,86650.0,86649.0,0.27679431]
[1742887216726,0.1154045,86650.0,86639.0,0.05817068]
[1742887216727,0.0577049,86646.0,86639.0,0.00046168]
[1742887216931,0.4762178,86640.0,86639.0,0.11647988]
[1742887217224,0.47681781,86640.0,86639.0,0.11647988]
[1742887217828,0.47681781,86640.0,86639.0,0.12725164]
[1742887217829,0.58051781,86640.0,86639.0,0.12725164]
[1742887218223,0.05110001,86640.0,86639.0,0.24969936]
[1742887218725,0.00060001,86640.0,86639.0,0.24969936]
[1742887219527,0.1154143,86643.0,86642.0,0.1154151]
[1742887219723,0.11601431,86643.0,86642.0,0.1160951]
[1742887220630,0.11601431,86643.0,86642.0,0.1190951]
[1742887221828,0.11601431,86643.0,86642.0,0.1220951]
[1742887224827,0.11601431,86643.0,86642.0,0.2281951]
[1742887225733,0.11601431,86643.0,86642.0,0.5889951]
[1742887226124,0.00060001,86643.0,86642.0,0.5889951]
[1742887228529,0.00060001,86643.0,86642.0,0.2281951]
[1742887228735,0.00060001,86643.0,86642.0,0.5889951]
[1742887230033,0.0522,86644.0,86643.0,0.1154138]
[1742887230231,0.05280001,86644.0,86643.0,0.1154138]
[1742887230528,0.05280001,86644.0,86643.0,0.2189138]
[1742887231130,0.05280001,86644.0,86643.0,0.2219138]
[1742887231720,0.07280001,86644.0,86643.0,0.2219138]
[1742887232137,0.07280001,86644.0,86643.0,0.2249138]
[1742887236632,0.00060001,86644.0,86643.0,0.2249138]
[1742887237342,0.00060001,86644.0,86643.0,0.23994115]
[1742887237940,0.00060001,86644.0,86643.0,0.2249138]
[1742887238337,0.00060001,86644.0,86643.0,0.23992046]
[1742887238944,0.00060001,86644.0,86643.0,0.2249138]
[1742887239139,0.00060001,86644.0,86643.0,0.23988839]
[1742887239942,0.00060001,86644.0,86643.0,0.2249138]
[1742887240145,0.12601241,86644.0,86643.0,0.1717138]
[1742887241143,0.23131241,86644.0,86643.0,0.1717138]
[1742887243639,0.22131241,86644.0,86643.0,0.1717138]
[1742887244142,0.58211241,86644.0,86643.0,0.1717138]
[1742887244347,0.58211241,86644.0,86643.0,0.0563]
[1742887244544,0.58211241,86644.0,86643.0,0.0557]
[1742887244743,0.58211241,86644.0,86643.0,0.1711138]
[1742887244945,0.58211241,86644.0,86643.0,0.18608731]
[1742887245141,0.58211241,86644.0,86643.0,0.18668731]
[1742887245947,0.58211241,86644.0,86643.0,0.18668074]
[1742887247851,0.58211241,86644.0,86643.0,0.1717138]
[1742887248053,0.58211241,86644.0,86643.0,0.18673273]
[1742887249150,0.99211241,86644.0,86643.0,0.18673273]
[1742887249355,0.99211241,86644.0,86643.0,0.23923273]
[1742887250760,0.99211241,86644.0,86643.0,0.07131893]
[1742887250942,0.99211241,86644.0,86643.0,0.07071893]
[1742887251147,0.99211241,86644.0,86643.0,0.12229893]
[1742887252058,0.99211241,86644.0,86643.0,0.07139893]
[1742887252247,0.99211241,86644.0,86643.0,0.07071893]
[1742887252448,0.99211241,86644.0,86643.0,0.1066]
[1742887252647,0.99211241,86644.0,86643.0,0.1072]
[1742887253749,0.99211241,86644.0,86643.0,0.2226138]
[1742887255259,0.99211241,86644.0,86643.0,0.1072]
[1742887255446,0.99211241,86644.0,86643.0,0.1066]
[1742887255859,0.99211241,86644.0,86643.0,0.10724]
[1742887256559,1.16372203,86644.0,86643.0,0.10724]
[1742887257058,1.16372203,86644.0,86643.0,0.1066]
[1742887257261,1.16372203,86644.0,86643.0,0.2220138]
[1742887257470,1.16372203,86644.0,86643.0,0.2226138]
[1742887259072,1.16372203,86644.0,86643.0,0.1072]
[1742887259372,1.16372203,86644.0,86643.0,0.2226138]
[1742887260274,1.16372203,86644.0,86643.0,0.1072]
[1742887260670,1.16372203,86644.0,86643.0,0.2226138]
[1742887260870,0.99211241,86644.0,86643.0,0.2226138]
[1742887261666,0.99211241,86644.0,86643.0,0.1072]
[1742887261871,0.99211241,86644.0,86643.0,0.1066]
[1742887262773,0.99211241,86644.0,86643.0,0.05634]
[1742887262974,0.99211241,86644.0,86643.0,0.0557]
[1742887265165,0.99211241,86644.0,86643.0,0.103]
[1742887265476,1.25416655,86644.0,86643.0,0.103]
[1742887266570,1.25416655,86644.0,86643.0,0.1036]
[1742887266770,1.25416655,86644.0,86643.0,0.103]
[1742887268972,1.04823501,86644.0,86643.0,0.103]
[1742887275677,1.25491054,86644.0,86643.0,0.103]
[1742887275878,0.89411054,86644.0,86643.0,0.103]
[1742887276078,1.25491054,86644.0,86643.0,0.103]
[1742887279677,1.16658352,86644.0,86643.0,0.1]
[1742887279883,1.16758352,86644.0,86643.0,0.1]
[1742887280389,1.16758352,86644.0,86643.0,0.097]
[1742887280579,1.16858352,86644.0,86643.0,0.097]
[1742887286886,1.11748352,86644.0,86643.0,0.097]
[1742887295288,1.2059125,86644.0,86643.0,0.097]
[1742887299907,0.99913501,86644.0,86643.0,0.097]
[1742887301110,0.63833501,86644.0,86643.0,0.097]
[1742887301410,1.11313501,86644.0,86643.0,0.097]
[1742887308525,1.11313501,86644.0,86623.0,0.00046177]
[1742887308526,0.0577123,86635.0,86623.0,0.00046177]
[1742887308721,0.8370391,86624.0,86623.0,0.00046177]
[1742887308919,0.9510391,86624.0,86623.0,0.00046177]
[1742887309119,0.95163911,86624.0,86623.0,0.00046177]
[1742887309628,0.1154484,86617.0,86616.0,0.0943]
[1742887309816,0.8868884,86617.0,86616.0,0.0949]
[1742887310924,0.9330884,86617.0,86616.0,0.1414]
[1742887312128,1.0470884,86617.0,86616.0,0.1424]
[1742887312529,1.0470884,86617.0,86616.0,0.1434]
[1742887313119,1.06042593,86617.0,86616.0,0.1434]
[1742887313527,1.0470884,86617.0,86616.0,0.1434]
[1742887313832,1.103211,86617.0,86616.0,0.1434]
[1742887314021,1.103211,86617.0,86616.0,0.1428]
[1742887314821,0.742411,86617.0,86616.0,0.1428]
[1742887315032,1.464011,86617.0,86616.0,0.1428]
[1742887315534,1.417811,86617.0,86616.0,0.1428]
[1742887317628,0.696211,86617.0,86616.0,0.1428]
[1742887317929,1.417811,86617.0,86616.0,0.1428]
[1742887319023,1.303811,86617.0,86616.0,0.1428]
[1742887319525,1.303811,86617.0,86616.0,0.2582498]
[1742887320126,1.303811,86617.0,86616.0,0.1428]
[1742887320625,1.303811,86617.0,86616.0,0.2582498]
[1742887320823,1.303811,86617.0,86616.0,0.1428]
[1742887322632,1.2476884,86617.0,86616.0,0.1428]
[1742887323626,0.5260884,86617.0,86616.0,0.1428]
[1742887323836,0.5260884,86617.0,86616.0,0.1434]
[1742887324030,0.5260884,86617.0,86616.0,0.2588498]
[1742887325731,0.5260884,86617.0,86616.0,0.2582498]
[1742887325936,0.5260884,86617.0,86616.0,0.2588898]
[1742887332941,0.8868884,86617.0,86616.0,0.2588898]
[1742887333237,0.8868884,86617.0,86616.0,0.14344]
[1742887333441,0.9344884,86617.0,86616.0,0.1428]
[1742887333739,0.9344884,86617.0,86616.0,0.1434]
[1742887333932,0.9344884,86617.0,86616.0,0.1428]
[1742887335025,0.9344884,86617.0,86616.0,0.1434]
[1742887338537,0.9344884,86617.0,86616.0,0.1428]
[1742887340332,0.9344884,86617.0,86616.0,0.0485]
[1742887340739,0.9824884,86617.0,86616.0,0.0485]
[1742887340939,0.1154604,86608.0,86596.0,8e-05]
[1742887341244,0.4769004,86608.0,86604.0,0.06225036]
[1742887341434,0.4769004,86608.0,86605.0,0.0472]
[1742887341934,0.5752004,86608.0,86605.0,0.0472]
[1742887342441,0.5752004,86608.0,86606.0,8e-05]
[1742887343044,0.5752004,86608.0,86607.0,0.00346185]
[1742887343946,0.5752004,86608.0,86607.0,0.00646185]
[1742887344136,0.5752004,86608.0,86607.0,0.05376185]
[1742887345239,0.5752004,86608.0,86607.0,0.00646185]
[1742887345638,0.63134121,86608.0,86607.0,0.00646185]
[1742887345835,1.16443716,86608.0,86607.0,0.00646185]
[1742887346037,0.80363716,86608.0,86607.0,0.00646185]
[1742887346345,1.52523716,86608.0,86607.0,0.00646185]
[1742887347046,1.52523716,86608.0,86607.0,0.10206185]
[1742887349445,1.40214121,86608.0,86607.0,0.10206185]
[1742887354545,1.51610121,86608.0,86607.0,0.10206185]
[1742887356356,1.40214121,86608.0,86607.0,0.10206185]
[1742887356542,1.51610121,86608.0,86607.0,0.10206185]
[1742887359842,1.64665511,86608.0,86607.0,0.10206185]
[1742887370662,0.92505511,86608.0,86607.0,0.10206185]
[1742887370865,1.28585511,86608.0,86607.0,0.10206185]
[1742887371360,1.15530121,86608.0,86607.0,0.10206185]
[1742887378267,1.15530121,86608.0,86607.0,0.09906185]
[1742887378571,1.15530121,86608.0,86607.0,0.10206185]
[1742887380375,0.1154631,86606.0,86605.0,8e-05]
[1742887380570,0.11606311,86606.0,86605.0,8e-05]
[1742887381165,0.52606311,86606.0,86605.0,8e-05]
[1742887381569,0.52606311,86606.0,86605.0,0.00308]
[1742887383069,0.52606311,86606.0,86605.0,0.00608]
[1742887386881,0.71577582,86606.0,86605.0,0.00608]
[1742887389177,1.07657582,86606.0,86605.0,0.00608]
[1742887402095,0.60031272,86606.0,86605.0,0.1215444]
[1742887402292,0.11186473,86606.0,86605.0,0.5968244]
[1742887402596,0.0008,86606.0,86605.0,0.5968244]
[1742887402794,0.1154554,86612.0,86611.0,0.1154551]
[1742887403098,0.1163354,86612.0,86611.0,0.1163351]
[1742887404295,0.1163354,86612.0,86611.0,0.1183351]
[1742887404498,0.1163354,86612.0,86611.0,0.1203351]
[1742887405190,0.00088,86612.0,86611.0,0.1203351]
[1742887405692,0.1163351,86612.0,86611.0,0.1203351]
[1742887405887,0.11605511,86612.0,86611.0,0.1203351]
[1742887406503,0.11605511,86612.0,86611.0,0.2342151]
[1742887407200,0.11605511,86612.0,86611.0,0.11876]
[1742887407401,0.11605511,86612.0,86611.0,0.2342164]
[1742887407402,0.16465511,86612.0,86611.0,0.2342164]
[1742887409495,0.16465511,86612.0,86611.0,0.00488]
[1742887409697,0.21285511,86612.0,86611.0,0.004]
[1742887410095,0.21285511,86612.0,86611.0,0.00488]
[1742887410703,0.21285511,86612.0,86611.0,0.004]
[1742887410903,0.21285511,86612.0,86611.0,0.0048]
[1742887411602,0.57365511,86612.0,86611.0,0.004]
[1742887412893,0.57365511,86612.0,86611.0,0.0048]
[1742887413098,0.57365511,86612.0,86611.0,0.004]
[1742887415597,0.68749511,86612.0,86611.0,0.004]
[1742887417606,0.1154564,86611.0,86610.0,8e-05]
[1742887417806,0.16055641,86611.0,86610.0,8e-05]
[1742887418108,0.20485641,86611.0,86610.0,8e-05]
[1742887418904,0.20485641,86611.0,86610.0,0.00408]
[1742887419409,0.61485641,86611.0,86610.0,0.00408]
[1742887420398,1.33645641,86611.0,86610.0,0.004]
[1742887420601,1.52144843,86611.0,86610.0,0.004]
[1742887429906,1.52144843,86611.0,86610.0,0.0487]
[1742887430102,1.52244843,86611.0,86610.0,0.0467]
[1742887430816,1.52244843,86611.0,86610.0,0.0938]
[1742887431116,1.63628843,86611.0,86610.0,0.0938]
[1742887431417,1.63628843,86611.0,86610.0,0.0918]
[1742887431619,1.63728843,86611.0,86610.0,0.0918]
[1742887434321,1.50844563,86611.0,86610.0,0.0918]
[1742887435420,1.39460563,86611.0,86610.0,0.0918]
[1742887435617,1.50844563,86611.0,86610.0,0.0918]
[1742887435817,1.50844563,86611.0,86610.0,0.1393]
[1742887444818,1.63745288,86611.0,86610.0,0.1393]
[1742887448326,1.63745288,86611.0,86610.0,0.0918]
[1742887448514,1.68305288,86611.0,86610.0,0.0918]
[1742887448917,1.68305288,86611.0,86601.0,0.0465]
[1742887448918,0.1154684,86602.0,86601.0,0.0465]
[1742887449228,0.4770684,86602.0,86601.0,0.0473]
[1742887449924,0.5228684,86602.0,86601.0,0.0473]
[1742887450117,0.5228684,86602.0,86601.0,0.0493]
[1742887450521,0.4770684,86602.0,86601.0,0.0493]
[1742887450825,0.4770684,86602.0,86601.0,0.1647697]
[1742887451025,0.4770684,86602.0,86601.0,0.0493]
[1742887452228,0.4770684,86602.0,86601.0,0.0971]
[1742887452530,0.4770684,86602.0,86601.0,0.2125697]
[1742887452733,0.73970999,86602.0,86601.0,0.2125697]
[1742887453632,0.73970999,86602.0,86601.0,0.0971]
[1742887454133,0.73970999,86602.0,86601.0,0.2125697]
[1742887455831,0.62424159,86602.0,86601.0,0.2125697]
[1742887456038,0.26344159,86602.0,86601.0,0.2125697]
[1742887456243,0.37890999,86602.0,86601.0,0.2125697]
[1742887456936,0.17241762,86602.0,86601.0,0.2125697]
[1742887457136,0.05694922,86602.0,86601.0,0.2125697]
[1742887457331,0.05614922,86602.0,86601.0,0.2125697]
[1742887458838,0.17161762,86602.0,86601.0,0.2125697]
[1742887459038,0.17221763,86602.0,86601.0,0.2125697]
[1742887459238,0.05674923,86602.0,86601.0,0.2125697]
[1742887459930,0.17221763,86602.0,86601.0,0.2125697]
[1742887461138,0.05674923,86602.0,86601.0,0.2125697]
[1742887461338,0.21954964,86602.0,86601.0,0.2125697]
[1742887461632,0.26484964,86602.0,86601.0,0.2125697]
[1742887462138,0.38031804,86602.0,86601.0,0.2125697]
[1742887464241,0.26441763,86602.0,86601.0,0.2125697]
[1742887467045,0.26441763,86602.0,86601.0,0.0971]
[1742887467735,0.26441763,86602.0,86601.0,0.2125697]
[1742887472737,0.26441763,86602.0,86601.0,0.0971]
[1742887473142,0.26441763,86602.0,86601.0,0.0963]
[1742887473540,0.26441763,86602.0,86601.0,0.2125697]
[1742887475043,0.26441763,86602.0,86601.0,0.0971]
[1742887475541,0.30931763,86602.0,86601.0,0.0971]
[1742887476741,0.30931763,86602.0,86601.0,0.2125697]
[1742887477142,0.30931763,86602.0,86601.0,0.0971]
[1742887477739,0.30931763,86602.0,86601.0,0.2125697]
[1742887478755,0.30931763,86602.0,86601.0,0.0971]
[1742887478951,0.67011763,86602.0,86601.0,0.0971]
[1742887479950,0.67011763,86602.0,86601.0,0.2125697]
[1742887480747,0.30931763,86602.0,86601.0,0.2125697]
[1742887483049,0.26441763,86602.0,86601.0,0.2125697]
[1742887491465,0.1154764,86596.0,86592.0,0.1155616]
[1742887491664,0.4762804,86593.0,86592.0,0.0006]
[1742887491868,0.1154817,86592.0,86591.0,0.00046194]
[1742887492159,0.2557217,86592.0,86591.0,0.00046194]
[1742887492365,0.2557217,86592.0,86591.0,0.00106194]
[1742887493454,0.2557217,86592.0,86591.0,0.00506194]
[1742887493854,0.2557217,86592.0,86591.0,0.01772686]
[1742887494466,0.2557217,86592.0,86591.0,0.02642567]
[1742887495056,0.44682545,86592.0,86591.0,0.02642567]
[1742887495770,0.44682545,86592.0,86591.0,0.02942567]
[1742887496969,0.44682545,86592.0,86591.0,0.02882567]
[1742887497465,0.44682545,86592.0,86591.0,0.02954567]
[1742887498469,0.31187092,86592.0,86591.0,0.02954567]
[1742887498863,0.67267092,86592.0,86591.0,0.02954567]
[1742887500163,0.67267092,86592.0,86591.0,0.02882567]
[1742887500867,0.67267092,86592.0,86591.0,0.02942567]
[1742887503169,0.67267092,86592.0,86591.0,0.02882567]
[1742887503566,0.67267092,86592.0,86591.0,0.02946567]
[1742887503777,0.67267092,86592.0,86591.0,0.02882567]
[1742887504266,0.67267092,86592.0,86591.0,0.02942567]
[1742887504471,0.67267092,86592.0,86591.0,0.02882567]
[1742887504770,0.67267092,86592.0,86591.0,0.12002567]
[1742887504972,0.67267092,86592.0,86591.0,0.12062567]
[1742887506580,0.62587092,86592.0,86591.0,0.12002567]
[1742887506879,0.62587092,86592.0,86591.0,0.12062567]
[1742887507082,0.62587092,86592.0,86591.0,0.12002567]
[1742887507473,0.62587092,86592.0,86591.0,0.12062567]
[1742887507872,0.62587092,86592.0,86591.0,0.12002567]
[1742887508171,0.62587092,86592.0,86591.0,0.12062567]
[1742887508368,0.62587092,86592.0,86591.0,0.12002567]
[1742887508572,0.62587092,86592.0,86591.0,0.12062567]
[1742887511082,0.62587092,86592.0,86591.0,0.12002567]
[1742887511280,0.62587092,86592.0,86591.0,0.12062567]
[1742887511482,0.62587092,86592.0,86591.0,0.12002567]
[1742887511683,0.62587092,86592.0,86591.0,0.12062567]
[1742887512388,0.62587092,86592.0,86591.0,0.12002567]
[1742887512684,0.51038922,86592.0,86591.0,0.23618877]
[1742887512888,0.46548922,86592.0,86591.0,0.23618877]
[1742887513282,0.58097092,86592.0,86591.0,0.23618877]
[1742887518486,0.5248217,86592.0,86591.0,0.23618877]
[1742887519786,0.40934,86592.0,86591.0,0.23618877]
[1742887519993,0.17195206,86597.0,86596.0,0.1154764]
[1742887520183,0.17271206,86597.0,86596.0,0.1162364]
[1742887520383,0.17271206,86597.0,86596.0,0.2299164]
[1742887520583,0.17271206,86597.0,86596.0,0.3211164]
[1742887521186,0.17271206,86597.0,86596.0,0.3231164]
[1742887521387,0.00076,86597.0,86596.0,0.3231164]
[1742887521589,0.04716,86597.0,86596.0,0.3231164]
[1742887523189,0.04716,86597.0,86596.0,0.3251164]
[1742887524191,0.1626351,86597.0,86596.0,0.09596]
[1742887524395,0.1626351,86597.0,86596.0,0.11844]
[1742887524596,0.2065351,86597.0,86596.0,0.11844]
[1742887525296,0.2065351,86597.0,86596.0,0.00476]
[1742887525496,0.5673351,86597.0,86596.0,0.00476]
[1742887525799,0.5673351,86597.0,86596.0,0.004]
[1742887526997,0.1154764,86596.0,86595.0,8e-05]
[1742887527402,0.15937641,86596.0,86595.0,8e-05]
[1742887527790,0.17201992,86596.0,86595.0,8e-05]
[1742887528291,0.17201992,86596.0,86595.0,0.00308]
[1742887529391,0.17201992,86596.0,86595.0,0.00508]
[1742887529793,0.22817675,86596.0,86595.0,0.00508]
[1742887529999,0.99497675,86596.0,86595.0,0.00508]
[1742887532597,0.1155018,86577.0,86576.0,0.0489]
[1742887532796,0.1162618,86577.0,86576.0,0.06215847]
[1742887533097,0.00076,86577.0,86576.0,0.22166157]
[1742887533302,0.00997059,86577.0,86576.0,0.22166157]
[1742887533505,0.21787239,86577.0,86576.0,0.22166157]
[1742887533893,0.21887239,86577.0,86576.0,0.22466157]
[1742887534301,0.22788872,86577.0,86576.0,0.22466157]
[1742887535199,0.22888872,86577.0,86576.0,0.22466157]
[1742887535697,0.22888872,86577.0,86576.0,0.23313218]
[1742887537902,0.22873727,86577.0,86576.0,0.23313218]
[1742887538106,0.36620704,86577.0,86576.0,0.23313218]
[1742887538305,0.25070524,86577.0,86576.0,0.23313218]
[1742887538604,0.15830524,86577.0,86576.0,0.23313218]
[1742887539404,0.25224775,86577.0,86576.0,0.23313218]
[1742887539904,0.36774955,86577.0,86576.0,0.23313218]
[1742887540601,0.66224775,86577.0,86575.0,2e-08]
[1742887540805,0.17190475,86576.0,86575.0,2e-08]
[1742887541006,0.17254475,86576.0,86575.0,2e-08]
[1742887541306,0.2122431,86576.0,86575.0,2e-08]
[1742887541495,0.22125943,86576.0,86575.0,2e-08]
[1742887542200,0.22225943,86576.0,86575.0,0.00200002]
[1742887542505,0.23123325,86576.0,86575.0,0.00200002]
[1742887542705,0.23023325,86576.0,86575.0,0.00200002]
[1742887543895,0.27803325,86576.0,86575.0,0.00200002]
[1742887545314,0.68803325,86576.0,86575.0,0.00200002]
[1742887546705,0.1155164,86566.0,86565.0,0.0444]
[1742887546906,0.49494655,86566.0,86565.0,0.1605178]
[1742887547506,0.63894655,86566.0,86565.0,0.1605178]
[1742887548099,0.63894655,86566.0,86565.0,0.045]
[1742887548601,0.63894655,86566.0,86565.0,0.0942]
[1742887548801,0.63894655,86566.0,86565.0,0.045]
[1742887549403,0.63894655,86566.0,86565.0,0.0942]
[1742887550811,0.63901277,86566.0,86565.0,0.0942]
[1742887551602,0.62997273,86566.0,86565.0,0.0942]
[1742887551806,0.63901395,86566.0,86565.0,0.0942]
[1742887553803,0.62997273,86566.0,86565.0,0.0942]
[1742887553999,0.6209564,86566.0,86565.0,0.0942]
[1742887554514,0.5727564,86566.0,86565.0,0.0942]
[1742887554716,0.00064,86566.0,86565.0,0.4042]
[1742887554916,0.0769508,86574.0,86571.0,0.0577542]
[1742887555106,0.27624294,86594.0,86593.0,0.1154804]
[1742887555413,0.27628294,86594.0,86593.0,0.2320004]
[1742887556109,0.27628294,86594.0,86593.0,0.1162404]
[1742887556322,0.27928294,86594.0,86593.0,0.2320404]
[1742887557916,0.27928294,86594.0,86593.0,0.33309968]
[1742887558114,0.28228294,86594.0,86593.0,0.33309968]
[1742887558512,0.28228294,86594.0,86593.0,0.59309968]
[1742887558725,0.24184916,86594.0,86593.0,0.99309968]
[1742887559020,0.12161408,86594.0,86593.0,0.99309968]
[1742887559213,0.04259058,86594.0,86593.0,0.74309968]
[1742887559412,0.0021568,86594.0,86593.0,1.02309968]
[1742887559717,0.0021568,86594.0,86593.0,0.74309968]
[1742887560111,0.0004,86600.0,86599.0,0.1154724]
[1742887560308,0.0004,86600.0,86599.0,0.4769924]
[1742887560508,0.00112,86600.0,86599.0,0.4769924]
[1742887561012,0.00112,86600.0,86599.0,0.5650924]
[1742887561316,0.00112,86600.0,86599.0,0.6808124]
[1742887561517,0.00112,86600.0,86599.0,0.6818124]
[1742887562619,0.0004,86600.0,86599.0,0.6818124]
[1742887563013,0.0004,86600.0,86599.0,0.6828124]
[1742887563214,0.00112,86600.0,86599.0,0.6828124]
[1742887563705,0.0004,86600.0,86599.0,0.6828124]
[1742887565216,0.0004,86600.0,86599.0,0.5670924]
[1742887565426,0.0454,86600.0,86599.0,0.6423324]
[1742887565720,0.04612,86600.0,86599.0,0.6423324]